fUSD/lending_fUSD_20251030
["ID","MTS","AMOUNT","RATE_DAILY","PERIOD"]
[392711305,1761845444034,-194.52242824,0.000315,2]
[392711306,1761845444044,-150.0,0.000315,2]
[392711307,1761845444053,-1705.98226378,0.000315,2]
[392711308,1761845444063,-32220.21,0.000315,7]
[392711309,1761845444072,-380.06,0.000315,7]
[392711310,1761845444081,-2067.57,0.000315,7]
[392711311,1761845444091,-2783.38,0.000315,7]
[392711312,1761845444101,-606.42,0.000315,7]
[392711313,1761845444110,-729.71465464,0.000315,10]
[392711322,1761845445651,-150.0,0.00030187,3]
[392711323,1761845445662,-325.28763076,0.000315,10]
[392711324,1761845445707,-294.9977146,0.000315,10]
[392711325,1761845445717,-280.04045774,0.000315,7]
[392711326,1761845445763,-497.22507894,0.000315,7]
[392711327,1761845445930,-150.0,0.00030687,3]
[392711328,1761845445943,-1013.82446332,0.000315,7]
[392711329,1761845445952,-500.0,0.000315,30]
[392711331,1761845445962,-300.0,0.00031506,10]
[392711332,1761845445971,-300.0,0.00031506,10]
[392711333,1761845445981,-151.0,0.00031506,7]
[392711335,1761845445991,-500.0,0.00031506,2]
[392711336,1761845446000,-500.0,0.00031506,2]
[392711337,1761845446010,-1167.33,0.00031506,2]
[392711338,1761845446020,-5893.83,0.00031506,2]
[392711339,1761845446030,-500.0,0.00031506,2]
[392711340,1761845446038,-500.0,0.00031506,2]
[392711341,1761845446048,-336.9,0.00031506,2]
[392711342,1761845446057,-300.0,0.00031506,2]
[392711343,1761845446066,-13090.44644086,0.00031507,2]
[392711344,1761845446077,-60952.84251416,0.00031507,2]
[392711345,1761845446087,-14047.15748594,0.00031507,2]
[392711523,1761845465923,1971.15920068,0.00027252,120]
[392711524,1761845521926,373.04321473,0.00027252,120]
[392711577,1761845823216,259.85829384,0.0002996,120]
[392711593,1761845862188,500.0,0.0002996,120]
[392711594,1761845920169,655.50743965,0.00031507,120]
[392711676,1761846418150,-427.59403095,0.00024,2]
[392711688,1761846549096,-1811.324298,0.00024,2]
[392711690,1761846564425,377.94170616,0.00031506,120]
[392711719,1761846627970,166.51,0.00014546,2]
[392711743,1761846631709,-166.51,0.00016365,2]
[392711744,1761846631718,-166.51,0.00018183,2]
[392711745,1761846631727,-50.45776338,0.00020001,2]
[392711772,1761846637581,-116.05223662,0.00020001,2]
[392711773,1761846637591,-166.51,0.0002182,2]
[392711774,1761846637601,-166.51,0.00023638,2]
[392711775,1761846637611,-3980.85390188,0.00024,2]
[392711776,1761846637633,-1139.32628644,0.00024,2]
[392711777,1761846637642,-2571.45434343,0.000243,2]
[392711778,1761846637651,-269.8575513,0.00024592,2]
[392711779,1761846637660,-160.0,0.00024685,2]
[392711780,1761846637670,-1200.0,0.00024774,2]
[392711781,1761846637680,-300.0,0.00024774,2]
[392711782,1761846637689,-565.917,0.00024775,2]
[392711783,1761846637698,-292.17558331,0.00024775,2]
[392711784,1761846637709,-61.09241669,0.00024775,2]
[392711785,1761846637719,-200.0,0.00024775,2]
[392711786,1761846637728,-1437.354,0.00024775,2]
[392711787,1761846637738,-150.0,0.00024775,2]
[392711788,1761846637747,-558.0,0.00024775,2]
[392711789,1761846637757,-166.51,0.00025456,2]
[392711790,1761846637766,-173.2552187,0.00025929,2]
[392711791,1761846637778,-144.45153256,0.00025929,2]
[392711792,1761846637788,-300.96819241,0.000264,2]
[392711793,1761846637797,-300.0,0.00026845,2]
[392711794,1761846637807,-500.0,0.00027135,7]
[392711795,1761846637816,-269.85755129,0.00027219,2]
[392711796,1761846637825,-166.51,0.00027274,2]
[392711797,1761846637834,-150.0,0.00027775,2]
[392711798,1761846637843,-150.0,0.00027775,2]
[392711800,1761846637853,-165.82307771,0.000279,30]
[392711801,1761846637862,-166.66,0.00027983,30]
[392711802,1761846637871,-168.0,0.00028446,2]
[392711803,1761846637881,-277.35679052,0.00028683,2]
[392711804,1761846637890,-500.0,0.000288,5]
[392711805,1761846637900,-150.0,0.00028839,2]
[392711807,1761846637909,-166.66,0.00028965,30]
[392711809,1761846637919,-166.42649551,0.00029,2]
[392711855,1761846639947,-150.0,0.00028275,3]
[392711857,1761846639957,-1419.47322005,0.00029,2]
[392711906,1761846645774,500.0,0.00031506,120]
[392711907,1761846645821,-150.0,0.00028775,3]
[392711908,1761846645830,-414.10028444,0.00029,2]
[392711909,1761846645839,-166.51,0.00029093,2]
[392711910,1761846645849,-168.0,0.00029117,2]
[392711911,1761846645859,-841.19830167,0.00029199,2]
[392711912,1761846645871,-467.4427975,0.00029199,2]
[392711920,1761846668074,150.0,0.00027252,120]
[392711921,1761846669163,195.0,0.00027252,120]
[392711922,1761846669281,195.0,0.00026014,120]
[392711923,1761846671694,300.0,0.00027252,120]
[392711924,1761846672155,300.0,0.00026014,120]
[392711964,1761846728793,249.80884496,0.00031506,120]
[392711967,1761846796952,150.0,0.0003041,120]
[392711968,1761846797148,150.0,0.0003041,120]
[392711969,1761846797341,150.0,0.0003041,120]
[392711970,1761846797537,150.0,0.0003041,120]
[392711971,1761846797737,200.0,0.0003041,120]
[392712109,1761847388864,500.0,0.00031506,120]
[392712115,1761847831767,-216.26626267,0.00024674,2]
[392712116,1761847831777,-477.13749083,0.00024742,2]
[392712117,1761847831787,-300.0,0.00024773,2]
[392712118,1761847831797,-872.60099843,0.00024774,2]
[392712119,1761847831872,-727.39900157,0.00024774,2]
[392712120,1761847831882,-300.0,0.00024774,2]
[392712121,1761847831892,-1200.0,0.00024774,2]
[392712122,1761847831901,-573.0,0.00024775,2]
[392712123,1761847831910,-606.0,0.00024775,2]
[392712124,1761847831919,-625.52219837,0.00024775,2]
[392712125,1761847831931,-194.47780163,0.00024775,2]
[392712126,1761847831940,-1591.0,0.00024775,2]
[392712127,1761847831949,-236.54322879,0.00024775,2]
[392712128,1761847831961,-968.40377121,0.00024775,2]
[392712129,1761847831970,-818.0,0.00024775,2]
[392712130,1761847831978,-161.012,0.00024775,2]
[392712131,1761847831988,-150.0,0.00024775,2]
[392712132,1761847831997,-400.0,0.00025418,2]
[392712133,1761847832006,-500.0,0.00026536,7]
[392712134,1761847832016,-500.0,0.0002675,2]
[392712135,1761847832025,-500.0,0.0002675,2]
[392712136,1761847832034,-156.34092863,0.0002675,2]
[392712137,1761847832045,-343.65907137,0.0002675,2]
[392712138,1761847832054,-503.27882142,0.0002675,2]
[392712139,1761847832063,-324.93262664,0.00027298,2]
[392712140,1761847832075,-175.06737336,0.00027298,2]
[392712141,1761847832085,-500.0,0.00027298,2]
[392712142,1761847832093,-167.39547852,0.00027339,7]
[392712143,1761847832105,-332.60452148,0.00027339,7]
[392712144,1761847832114,-176.23348597,0.00027396,2]
[392712145,1761847832123,-500.0,0.00027396,2]
[392712146,1761847832132,-343.00567924,0.00027396,2]
[392712147,1761847832143,-156.99432076,0.00027396,2]
[392712148,1761847832153,-409.26177432,0.00027396,2]
[392712149,1761847832164,-90.73822568,0.00027396,2]
[392712150,1761847832173,-198.41020458,0.00027396,2]
[392712163,1761847837771,-287.009,0.00026848,2]
[392712164,1761847837780,-301.58979542,0.00027396,2]
[392712165,1761847837789,-319.24788747,0.00027396,2]
[392712166,1761847837801,-262.64488093,0.00027396,2]
[392712167,1761847837810,-270.59233488,0.00027396,2]
[392712168,1761847837819,-66.00903851,0.00027397,2]
[392712169,1761847837877,-3661.33096149,0.00027397,2]
[392712170,1761847837887,-4079.79,0.00027397,2]
[392712171,1761847837896,-9999.99,0.00027397,2]
[392712172,1761847837907,-592.68,0.00027397,2]
[392712173,1761847837916,-1720.61,0.00027397,2]
[392712174,1761847837926,-768.49,0.00027397,2]
[392712175,1761847837936,-33486.34738057,0.00027397,2]
[392712258,1761847839868,-977.76,0.00024775,2]
[392712259,1761847839879,-98.04,0.00027397,2]
[392712260,1761847839919,-62664.68261943,0.00027397,2]
[392712261,1761847839928,-216.26626266,0.00027619,2]
[392712262,1761847839938,-363.3326482,0.00027719,2]
[392712263,1761847840078,-636.6573518,0.00027719,2]
[392712264,1761847840088,-420.64,0.00027719,2]
[392712265,1761847840097,-905.55,0.0002835,2]
[392712266,1761847840106,-160.0,0.00028455,2]
[392712267,1761847840116,-500.0,0.00028659,7]
[392712268,1761847840125,-19390.48,0.00028689,2]
[392712269,1761847840135,-848.9391,0.000289,2]
[392712270,1761847840144,-151.16919267,0.000289,2]
[392712271,1761847840153,-187.73343467,0.00028987,2]
[392712272,1761847840162,-199518.48513096,0.00029,7]
[392712273,1761847840173,-361.30790704,0.00029,7]
[392712286,1761847843026,-150.0,0.00028119,3]
[392712287,1761847843036,-9.52829418,0.00029,7]
[392712288,1761847843067,-50110.67866782,0.00029,7]
[392712289,1761847843077,-477.13749083,0.00029,7]
[392712290,1761847843087,-135816.89818694,0.00029,2]
[392712311,1761847941222,327.0,0.000315,120]
[392712312,1761847942033,1898.0,0.000315,120]
[392712313,1761847943350,1280.0,0.000315,120]
[392712314,1761847944165,1538.0,0.000315,120]
[392712315,1761847951011,432.0,0.000315,120]
[392712316,1761847951852,422.0,0.000315,120]
[392712317,1761847953166,471.0,0.000315,120]
[392712318,1761847953964,490.0,0.000315,120]
[392712319,1761847954766,415.0,0.000315,120]
[392712320,1761847955577,378.0,0.000315,120]
[392712321,1761847956381,151.0,0.000315,120]
[392712322,1761848006806,177.0,0.000315,120]
[392712323,1761848009030,379.0,0.000315,120]
[392712324,1761848066898,150.0,0.000286,120]
[392712325,1761848067180,1010.97802818,0.000315,120]
[392712328,1761848682080,446.42,0.00013699,2]
[392712331,1761848707730,149387.07,0.00015,2]
[392712332,1761848707766,1461748.32972594,0.00015,2]
[392712333,1761848707792,50000.0,0.00015,2]
[392712339,1761848957104,-2347.13372748,0.000149,2]
[392712340,1761848957125,-187.73343466,0.000149,2]
[392712341,1761848957147,-189.41463442,0.00014999,2]
[392712342,1761848957169,-286.87697427,0.00014999,2]
[392712343,1761848957189,-580.7063937,0.00014999,2]
[392712344,1761848957210,-785.34476704,0.00015,2]
[392712350,1761849031972,-300.0,0.00014999,2]
[392712352,1761849031983,-2207.87614712,0.00015,2]
[392712353,1761849031993,-11431.50804023,0.00015,2]
[392712354,1761849032005,-1002.47100856,0.00015,2]
[392712358,1761849032475,-67441.09272685,0.00015,2]
[392712359,1761849032487,-832.28589259,0.00015,2]
[392712360,1761849032500,-37826.74893502,0.00015,2]
[392712361,1761849032511,-19539.5965185,0.00015,2]
[392712362,1761849032524,-42904.0313167,0.00015,2]
[392712363,1761849032535,-1254.41808677,0.00015,2]
[392712364,1761849032545,-3000.0,0.00015,2]
[392712365,1761849032557,-391.2107439,0.00015,2]
[392712366,1761849032579,-2904.14323361,0.00015,2]
[392712367,1761849032591,-1335.80895032,0.00015,2]
[392712368,1761849032602,-473.58651533,0.00015,2]
[392712369,1761849032614,-644.96123496,0.00015,2]
[392712373,1761849038122,-187871.21253168,0.00015,2]
[392712378,1761849038331,-12110.66781233,0.00015,2]
[392712380,1761849038344,-1076.87482408,0.00015,2]
[392712387,1761849040084,-364.13,0.00015,2]
[392712403,1761849043543,-4274.01792673,0.00015,2]
[392712406,1761849043559,-492.22664294,0.00015,2]
[392712452,1761849046150,-411.15308683,0.00014999,2]
[392712453,1761849046160,-21920.42165485,0.00015,2]
[392712454,1761849046257,-3539.52308777,0.00015,2]
[392712455,1761849046312,-790.3290019,0.00015,2]
[392712456,1761849082555,1051.52376254,0.000315,120]
[392712457,1761849233754,-300.0,0.0001499,2]
[392712458,1761849233783,-150.0,0.0001499,2]
[392712459,1761849233815,-300.0,0.0001499,2]
[392712460,1761849233842,-250.0,0.00014991,2]
[392712461,1761849233870,-281.876957,0.00014991,2]
[392712462,1761849233899,-200.0,0.00014991,2]
[392712463,1761849233935,-500.0,0.00014991,2]
[392712464,1761849233968,-151.0,0.00014991,2]
[392712465,1761849233997,-151.0,0.00014991,2]
[392712466,1761849234026,-500.0,0.00014991,2]
[392712467,1761849234055,-151.0,0.00014991,2]
[392712468,1761849234082,-500.0,0.00014991,2]
[392712469,1761849234109,-151.0,0.00014991,2]
[392712470,1761849234152,-500.0,0.00014991,2]
[392712471,1761849234185,-151.0,0.00014991,2]
[392712472,1761849234217,-500.0,0.00014991,2]
[392712473,1761849234246,-151.0,0.00014991,2]
[392712474,1761849234275,-500.0,0.00014991,2]
[392712475,1761849234306,-151.0,0.00014991,2]
[392712476,1761849234335,-500.0,0.00014991,2]
[392712477,1761849234363,-151.0,0.00014991,2]
[392712478,1761849234391,-500.0,0.00014991,2]
[392712479,1761849234419,-151.0,0.00014991,2]
[392712480,1761849234446,-500.0,0.00014991,2]
[392712481,1761849234475,-151.0,0.00014991,2]
[392712482,1761849234501,-500.0,0.00014991,2]
[392712483,1761849234529,-151.0,0.00014991,2]
[392712484,1761849234555,-500.0,0.00014991,2]
[392712485,1761849234582,-151.0,0.00014991,2]
[392712486,1761849234609,-200.0,0.00014991,2]
[392712487,1761849234636,-200.0,0.00014991,2]
[392712488,1761849234663,-500.0,0.00014999,2]
[392712489,1761849234692,-500.0,0.00014999,2]
[392712490,1761849234720,-168.12836643,0.00014999,2]
[392712491,1761849234750,-500.0,0.00014999,2]
[392712492,1761849234780,-500.0,0.00014999,2]
[392712493,1761849234808,-500.0,0.00014999,2]
[392712494,1761849234837,-500.0,0.00014999,2]
[392712495,1761849234866,-500.0,0.00014999,2]
[392712496,1761849234895,-500.0,0.00014999,2]
[392712497,1761849234924,-500.0,0.00014999,2]
[392712498,1761849234956,-330.53431854,0.00014999,2]
[392712499,1761849234986,-500.0,0.00014999,2]
[392712500,1761849235018,-324.22260275,0.00014999,2]
[392712501,1761849235054,-500.0,0.00014999,2]
[392712502,1761849236605,-25582.71526864,0.00015,2]
[392712503,1761849271879,-300.0,0.00014999,2]
[392712504,1761849271907,-5858.18291749,0.00015,2]
[392712505,1761849271951,-37683.63416502,0.00015,2]
[392712562,1761849496079,-300.0,0.0001499,2]
[392712563,1761849496108,-200.0,0.00014991,2]
[392712564,1761849496133,-200.0,0.00014991,2]
[392712565,1761849496162,-151.0,0.00014991,2]
[392712566,1761849496190,-151.0,0.00014991,2]
[392712567,1761849496216,-151.0,0.00014991,2]
[392712568,1761849496242,-151.0,0.00014991,2]
[392712569,1761849496268,-151.0,0.00014991,2]
[392712570,1761849496294,-151.0,0.00014991,2]
[392712571,1761849496321,-151.0,0.00014991,2]
[392712572,1761849496346,-151.0,0.00014991,2]
[392712573,1761849496371,-151.0,0.00014991,2]
[392712574,1761849496397,-151.0,0.00014991,2]
[392712575,1761849496426,-151.0,0.00014991,2]
[392712576,1761849496450,-200.0,0.00014991,2]
[392712577,1761849496477,-219.0,0.00014991,2]
[392712578,1761849496502,-1200.0,0.00014999,2]
[392712579,1761849496531,-300.0,0.00014999,2]
[392712580,1761849496557,-178.8166667,0.00014999,2]
[392712581,1761849496868,-51082.3666666,0.00015,2]
[392712584,1761849684125,235.97,0.0002572,120]
[392712585,1761849684357,235.97,0.00028058,120]
[392712586,1761849685845,-300.0,0.00014999,2]
[392712587,1761849685873,-1200.0,0.00014999,2]
[392712588,1761849685898,-250.0,0.00015,2]
[392712589,1761849685962,-46500.0,0.00015,2]
[392712636,1761850236414,-892.56216733,0.00014618,2]
[392712637,1761850236425,-199.03180759,0.00014632,2]
[392712638,1761850236436,-219.25936408,0.00014759,2]
[392712639,1761850236447,-150.0,0.00014972,2]
[392712640,1761850236457,-1200.0,0.00014972,2]
[392712641,1761850236466,-500.0,0.00014973,2]
[392712642,1761850236476,-275.97882501,0.00014985,2]
[392712643,1761850236487,-500.0,0.00014985,2]
[392712644,1761850236496,-151.0,0.00014991,2]
[392712645,1761850236505,-151.0,0.00014991,2]
[392712646,1761850236514,-151.0,0.00014991,2]
[392712647,1761850236523,-151.0,0.00014991,2]
[392712648,1761850236533,-151.0,0.00014991,2]
[392712649,1761850236541,-151.0,0.00014991,2]
[392712650,1761850236550,-151.0,0.00014991,2]
[392712651,1761850236559,-151.0,0.00014991,2]
[392712652,1761850236568,-151.0,0.00014991,2]
[392712653,1761850236577,-168.83364264,0.00014991,2]
[392712654,1761850236586,-151.0,0.00014991,2]
[392712655,1761850236595,-151.0,0.00014991,2]
[392712656,1761850236605,-151.0,0.00014991,2]
[392712657,1761850236614,-151.0,0.00014991,2]
[392712658,1761850236623,-151.0,0.00014991,2]
[392712659,1761850236632,-151.0,0.00014991,2]
[392712660,1761850236641,-151.0,0.00014991,2]
[392712661,1761850236650,-212.64433447,0.00014991,2]
[392712662,1761850236659,-200.0,0.00014991,2]
[392712663,1761850236668,-609.5806884,0.00014999,2]
[392712664,1761850236677,-500.0,0.00014999,2]
[392712665,1761850236686,-500.0,0.00014999,2]
[392712666,1761850236695,-93558.72827762,0.00015,2]
[392712667,1761850236706,-7849.6322674,0.00015,2]
[392712668,1761850236715,-213.27646,0.00015,2]
[392712669,1761850236724,-10798.6193056,0.00015,2]
[392712670,1761850236733,-774.6405838,0.00015,2]
[392712671,1761850236743,-219.0,0.00015265,2]
[392712672,1761850236752,-477.13749083,0.00015494,2]
[392712673,1761850236762,-1000.0,0.00015521,2]
[392712674,1761850236772,-219.0,0.00015539,2]
[392712675,1761850236782,-219.0,0.00015813,2]
[392712676,1761850236792,-300.0,0.00015985,2]
[392712677,1761850236801,-219.01,0.00016087,2]
[392712678,1761850236811,-250.0,0.00016088,2]
[392712679,1761850236820,-473.58651533,0.00016438,2]
[392712680,1761850236829,-558.0,0.00016469,2]
[392712682,1761850236839,-7849.6322674,0.0001679,2]
[392712684,1761850236849,-165.1930955,0.0001683,2]
[392712685,1761850236858,-500.0,0.0001683,2]
[392712687,1761850236867,-500.0,0.0001683,2]
[392712689,1761850236877,-501.33327153,0.0001683,2]
[392712691,1761850236886,-500.0,0.0001683,2]
[392712693,1761850236894,-500.0,0.0001683,2]
[392712695,1761850236903,-500.0,0.0001683,2]
[392712697,1761850236913,-500.0,0.0001683,2]
[392712699,1761850236923,-500.0,0.0001683,2]
[392712702,1761850236932,-500.0,0.0001683,2]
[392712704,1761850236942,-500.0,0.0001683,2]
[392712706,1761850236951,-213.27646,0.00017,2]
[392712707,1761850236961,-178.8166667,0.00017296,2]
[392712710,1761850236971,-1000.0,0.00017378,2]
[392712712,1761850236980,-505.51997312,0.00017378,2]
[392712714,1761850236989,-995.05307951,0.00017378,2]
[392712716,1761850236998,-774.6405838,0.00017466,2]
[392712718,1761850237008,-10798.6193056,0.00017515,2]
[392712719,1761850237017,-207.4,0.0001773,2]
[392712722,1761850237026,-166.66,0.0001784,2]
[392712723,1761850237036,-165.34,0.00017979,2]
[392712724,1761850237045,-337.39608853,0.00018,2]
[392712725,1761850237056,-166.66,0.00018215,2]
[392712726,1761850237066,-4217.23290342,0.00018326,2]
[392712727,1761850237086,-418.87709658,0.00018326,2]
[392712728,1761850237096,-7849.6322674,0.00018581,2]
[392712729,1761850237106,-166.66,0.00018591,2]
[392712730,1761850237115,-200.0,0.0001866,2]
[392712731,1761850237124,-235.97,0.00018706,2]
[392712732,1761850237134,-2887.88,0.00018743,2]
[392712733,1761850237143,-176.76,0.00018804,2]
[392712734,1761850237152,-173.96,0.00018869,2]
[392712735,1761850237162,-5271.16,0.000189,2]
[392712736,1761850237172,-166.66,0.00018966,2]
[392712737,1761850237182,-213.27647,0.00019,2]
[392712738,1761850237192,-151.0,0.00019178,2]
[392712739,1761850237201,-166.66,0.00019342,2]
[392712740,1761850237210,-312.74,0.00019386,2]
[392712741,1761850237220,-19207.06,0.00019405,2]
[392712742,1761850237229,-2727.78570994,0.00019493,2]
[392712743,1761850237239,-178.8166667,0.00019593,2]
[392712744,1761850237248,-166.66,0.00019717,2]
[392712745,1761850237257,-159.01753016,0.0001985,2]
[392712746,1761850237267,-774.6405838,0.00019932,2]
[392712747,1761850237276,-105373.69942073,0.0001995,15]
[392712748,1761850237286,-151.0,0.0001995,7]
[392712749,1761850237295,-166.571214,0.0001995,7]
[392712750,1761850237307,-151.0,0.0001995,7]
[392712751,1761850237316,-184.869351,0.0001995,7]
[392712752,1761850237325,-184.869351,0.0001995,7]
[392712753,1761850237334,-184.869351,0.0001995,7]
[392712754,1761850237344,-184.869351,0.0001995,7]
[392712755,1761850237353,-151.0,0.0001995,7]
[392712756,1761850237362,-151.0,0.0001995,7]
[392712757,1761850237376,-151.0,0.0001995,7]
[392712758,1761850237385,-151.0,0.0001995,7]
[392712759,1761850237394,-151.0,0.0001995,7]
[392712760,1761850237403,-151.0,0.0001995,7]
[392712761,1761850237413,-151.0,0.0001995,7]
[392712762,1761850237715,-151.0,0.0001995,7]
[392712763,1761850237725,-151.0,0.0001995,7]
[392712764,1761850237734,-151.0,0.0001995,7]
[392712765,1761850237744,-151.0,0.0001995,7]
[392712766,1761850237753,-151.0,0.0001995,7]
[392712767,1761850237762,-151.0,0.0001995,7]
[392712768,1761850237773,-179.304028,0.0001995,7]
[392712769,1761850237782,-155.165276,0.0001995,7]
[392712770,1761850237791,-151.0,0.0001995,7]
[392712771,1761850237800,-151.0,0.0001995,7]
[392712772,1761850237809,-200.377156,0.0001995,7]
[392712773,1761850237818,-153.252773,0.0001995,7]
[392712774,1761850237827,-151.0,0.0001995,7]
[392712775,1761850237836,-151.0,0.0001995,7]
[392712776,1761850237846,-151.0,0.0001995,7]
[392712777,1761850237855,-154.172899,0.0001995,7]
[392712778,1761850237864,-151.0,0.0001995,7]
[392712779,1761850237874,-157.218322,0.0001995,7]
[392712780,1761850237883,-154.753346,0.0001995,7]
[392712781,1761850237892,-158.89289,0.0001995,7]
[392712782,1761850237901,-151.0,0.0001995,7]
[392712783,1761850237910,-151.0,0.0001995,7]
[392712784,1761850237919,-151.0,0.0001995,7]
[392712785,1761850237929,-153.657073,0.0001995,7]
[392712786,1761850237938,-300.0,0.00019982,2]
[392712787,1761850237947,-10798.6193056,0.00020029,2]
[392712788,1761850237957,-446.42,0.00020187,2]
[392712789,1761850237967,-7849.6322674,0.00020371,2]
[392712790,1761850237976,-245.27042517,0.00020469,2]
[392712791,1761850237986,-213.27646,0.00021,2]
[392712792,1761850237996,-235.97,0.00021044,2]
[392712793,1761850238005,-1039.86,0.0002119,2]
[392712794,1761850238014,-500.0,0.00021229,2]
[392712795,1761850238024,-300.0,0.00021352,2]
[392712796,1761850238033,-2727.78570992,0.00021445,2]
[392712797,1761850238043,-2000.0,0.000216,2]
[392712798,1761850238052,-162.85864398,0.00021718,2]
[392712799,1761850238062,-4901.24529124,0.00021718,2]
[392712801,1761850238072,-1185.13,0.00021757,2]
[392712802,1761850238081,-20317.9306962,0.00021818,2]
[392712804,1761850238091,-105442.1844671,0.00021818,2]
[392712805,1761850238100,-151.0,0.00021818,7]
[392712806,1761850238110,-151.0,0.00021818,7]
[392712807,1761850238120,-251.236667,0.00021818,7]
[392712808,1761850238129,-151.0,0.00021818,7]
[392712809,1761850238139,-153.326668,0.00021818,7]
[392712810,1761850238148,-153.664611,0.00021818,7]
[392712811,1761850238158,-151.0,0.00021818,7]
[392712812,1761850238168,-151.0,0.00021818,7]
[392712813,1761850238178,-151.0,0.00021818,7]
[392712814,1761850238188,-151.0,0.00021818,7]
[392712815,1761850238198,-151.0,0.00021818,7]
[392712816,1761850238208,-153.035891,0.00021818,7]
[392712817,1761850238218,-151.0,0.00021818,7]
[392712818,1761850238228,-151.0,0.00021818,7]
[392712819,1761850238237,-151.0,0.00021818,7]
[392712820,1761850238246,-151.0,0.00021818,7]
[392712821,1761850238256,-151.0,0.00021818,7]
[392712822,1761850238266,-151.0,0.00021818,7]
[392712823,1761850238275,-151.0,0.00021818,7]
[392712824,1761850238285,-151.0,0.00021818,7]
[392712825,1761850238295,-151.0,0.00021818,7]
[392712826,1761850238305,-151.0,0.00021818,7]
[392712827,1761850238320,-154.958546,0.00021818,7]
[392712828,1761850238330,-151.0,0.00021818,7]
[392712829,1761850238339,-151.0,0.00021818,7]
[392712830,1761850238348,-158.090056,0.00021818,7]
[392712831,1761850238358,-151.0,0.00021818,7]
[392712832,1761850238370,-151.0,0.00021818,7]
[392712833,1761850238380,-154.194433,0.00021818,7]
[392712834,1761850238391,-151.0,0.00021818,7]
[392712835,1761850238400,-151.0,0.00021818,7]
[392712836,1761850238411,-151.0,0.00021818,7]
[392712837,1761850238420,-151.0,0.00021818,7]
[392712838,1761850238430,-168.892721,0.00021818,7]
[392712839,1761850238440,-151.0,0.00021818,7]
[392712840,1761850238450,-151.0,0.00021818,7]
[392712841,1761850238460,-151.0,0.00021818,7]
[392712842,1761850238470,-151.0,0.00021818,7]
[392712843,1761850238479,-151.0,0.00021818,7]
[392712845,1761850238488,-151.0,0.00021818,7]
[392712847,1761850238498,-151.0,0.00021818,7]
[392712849,1761850238508,-161.861199,0.00021818,7]
[392712851,1761850238517,-178.399373,0.00021818,7]
[392712852,1761850238527,-151.0,0.00021818,7]
[392712853,1761850238536,-151.0,0.00021818,7]
[392712855,1761850238546,-271.846906,0.00021818,7]
[392712856,1761850238557,-477.13749083,0.00021818,7]
[392712857,1761850238566,-184.869351,0.00021818,7]
[392712858,1761850238575,-184.869351,0.00021818,7]
[392712859,1761850238585,-395.522566,0.00021818,7]
[392712860,1761850238594,-184.869351,0.00021818,7]
[392712861,1761850238603,-184.869351,0.00021818,7]
[392712862,1761850238613,-151.0,0.00021818,7]
[392712863,1761850238623,-151.0,0.00021818,7]
[392712865,1761850238632,-151.0,0.00021818,7]
[392712867,1761850238642,-151.0,0.00021818,7]
[392712868,1761850238651,-151.0,0.00021818,7]
[392712869,1761850238660,-151.0,0.00021818,7]